[Event "Live Chess"]
[Site "Chess.com"]
[Date "2023.05.21"]
[Round "-"]
[White "Nazar_777"]
[Black "MJMykh"]
[Result "0-1"]
[WhiteElo "1589"]
[BlackElo "1083"]
[TimeControl "300"]
[EndTime "0:24:20 PDT"]
[Termination "MJMykh won on time"]

1. e3 {[%clk 0:04:41.6]} 1... e5 {[%clk 0:04:57.5]} 2. h4 {[%clk 0:04:28.5]}
2... Nc6 {[%clk 0:04:55.9]} 3. a3 {[%clk 0:04:27.9]} 3... Nf6 {[%clk 0:04:54.5]}
4. c4 {[%clk 0:04:26.9]} 4... Bc5 {[%clk 0:04:53.7]} 5. Nc3 {[%clk 0:04:25.9]}
5... O-O {[%clk 0:04:53.1]} 6. Be2 {[%clk 0:04:25.3]} 6... d6 {[%clk 0:04:52.6]}
7. Nf3 {[%clk 0:04:24.6]} 7... Bg4 {[%clk 0:04:50.2]} 8. Qc2 {[%clk 0:04:24]}
8... Bxf3 {[%clk 0:04:48.9]} 9. Bxf3 {[%clk 0:04:22.7]} 9... Qd7 {[%clk
0:04:46.7]} 10. b4 {[%clk 0:04:21.3]} 10... Bb6 {[%clk 0:04:35.7]} 11. Bb2
{[%clk 0:04:19.7]} 11... a6 {[%clk 0:04:31.9]} 12. Rc1 {[%clk 0:04:18.4]} 12...
a5 {[%clk 0:04:23.4]} 13. Be4 {[%clk 0:04:14.9]} 13... Nxe4 {[%clk 0:04:08.1]}
14. Nxe4 {[%clk 0:04:13]} 14... axb4 {[%clk 0:04:05.9]} 15. Ng5 {[%clk
0:04:10.4]} 15... f5 {[%clk 0:03:57.2]} 16. g4 {[%clk 0:03:31.4]} 16... bxa3
{[%clk 0:03:49.9]} 17. Ba1 {[%clk 0:03:29.2]} 17... a2 {[%clk 0:03:46.9]} 18.
Bc3 {[%clk 0:03:27.4]} 18... a1=Q {[%clk 0:03:30.7]} 19. Rxa1 {[%clk 0:03:25.7]}
19... Rxa1+ {[%clk 0:03:28.6]} 20. Bxa1 {[%clk 0:03:24.5]} 20... h6 {[%clk
0:03:23.2]} 21. Nh3 {[%clk 0:03:18.8]} 21... fxg4 {[%clk 0:03:18.6]} 22. Ng5
{[%clk 0:03:12.3]} 22... hxg5 {[%clk 0:03:14.5]} 23. hxg5 {[%clk 0:03:11]} 23...
Kf7 {[%clk 0:03:12.2]} 24. g6+ {[%clk 0:03:01.1]} 24... Ke8 {[%clk 0:03:07.3]}
25. Qa4 {[%clk 0:02:52.3]} 25... Ke7 {[%clk 0:03:02]} 26. Rh7 {[%clk 0:02:47.5]}
26... Rg8 {[%clk 0:02:56.2]} 27. Qb3 {[%clk 0:02:42.7]} 27... Na5 {[%clk
0:02:45.2]} 28. Qa2 {[%clk 0:02:40]} 28... Nc6 {[%clk 0:02:39.4]} 29. c5 {[%clk
0:02:38.5]} 29... Qe6 {[%clk 0:02:28.3]} 30. Qxe6+ {[%clk 0:02:32.2]} 30... Kxe6
{[%clk 0:02:27.2]} 31. cxb6 {[%clk 0:02:30.9]} 31... cxb6 {[%clk 0:02:26.1]} 32.
Ke2 {[%clk 0:02:29.2]} 32... Kf6 {[%clk 0:02:22.7]} 33. Rh4 {[%clk 0:02:23.6]}
33... Kxg6 {[%clk 0:02:17.8]} 34. Rxg4+ {[%clk 0:02:22.1]} 34... Kf6 {[%clk
0:02:16.9]} 35. f4 {[%clk 0:02:19.3]} 35... b5 {[%clk 0:02:11.6]} 36. Rg5 {[%clk
0:02:15.5]} 36... Re8 {[%clk 0:02:05.9]} 37. e4 {[%clk 0:02:12.6]} 37... Nd4+
{[%clk 0:01:58.6]} 38. Kd3 {[%clk 0:01:59.5]} 38... Nc6 {[%clk 0:01:50.9]} 39.
Rg1 {[%clk 0:01:54.6]} 39... g6 {[%clk 0:01:44.3]} 40. Rh1 {[%clk 0:01:44.7]}
40... Nb4+ {[%clk 0:01:40.3]} 41. Kc3 {[%clk 0:01:34.2]} 41... Nc6 {[%clk
0:01:34.3]} 42. Kd3 {[%clk 0:01:29.4]} 42... b4 {[%clk 0:01:31.8]} 43. Rh6
{[%clk 0:01:26.1]} 43... b5 {[%clk 0:01:27.9]} 44. f5 {[%clk 0:01:24.7]} 44...
Rg8 {[%clk 0:01:23.7]} 45. Ke3 {[%clk 0:01:19.5]} 45... b3 {[%clk 0:01:20]} 46.
Bc3 {[%clk 0:01:05.4]} 46... b4 {[%clk 0:01:17.7]} 47. Bb2 {[%clk 0:01:01.3]}
47... Nd4 {[%clk 0:01:11.9]} 48. Bxd4 {[%clk 0:00:53.8]} 48... exd4+ {[%clk
0:01:10.4]} 49. Kxd4 {[%clk 0:00:52.4]} 49... b2 {[%clk 0:01:09.2]} 50. Rh1
{[%clk 0:00:49.4]} 50... gxf5 {[%clk 0:01:06.1]} 51. Rb1 {[%clk 0:00:46.7]}
51... fxe4 {[%clk 0:01:04.6]} 52. Kxe4 {[%clk 0:00:45.3]} 52... Re8+ {[%clk
0:01:02]} 53. Kd3 {[%clk 0:00:42.8]} 53... Rb8 {[%clk 0:00:59.9]} 54. Rxb2
{[%clk 0:00:41.6]} 54... Ke5 {[%clk 0:00:59.5]} 55. Rb3 {[%clk 0:00:39]} 55...
Kd5 {[%clk 0:00:58.2]} 56. Ke3 {[%clk 0:00:33.1]} 56... Kc4 {[%clk 0:00:56.5]}
57. Rb2 {[%clk 0:00:31.4]} 57... b3 {[%clk 0:00:55.2]} 58. Ke4 {[%clk 0:00:28]}
58... d5+ {[%clk 0:00:53.6]} 59. Ke3 {[%clk 0:00:26.5]} 59... d4+ {[%clk
0:00:52.8]} 60. Ke4 {[%clk 0:00:24.6]} 60... Rb4 {[%clk 0:00:51]} 61. Ke5 {[%clk
0:00:16.9]} 61... Kd3 {[%clk 0:00:49.7]} 62. Kf4 {[%clk 0:00:06.6]} 62... Ke2
{[%clk 0:00:47]} 0-1

[Event "Live Chess"]
[Site "Chess.com"]
[Date "2023.05.21"]
[Round "-"]
[White "LutherSullivan"]
[Black "Long1968"]
[Result "1-0"]
[WhiteElo "2125"]
[BlackElo "996"]
[TimeControl "300"]
[EndTime "0:24:38 PDT"]
[Termination "LutherSullivan won on time"]

1. e4 {[%clk 0:04:59.1]} 1... e6 {[%clk 0:04:58.2]} 2. d4 {[%clk 0:04:57.6]}
2... d5 {[%clk 0:04:55.7]} 3. e5 {[%clk 0:04:57]} 3... c5 {[%clk 0:04:53.5]} 4.
c3 {[%clk 0:04:56.6]} 4... Nc6 {[%clk 0:04:51.7]} 5. Nf3 {[%clk 0:04:54.9]} 5...
Qb6 {[%clk 0:04:49.4]} 6. Be2 {[%clk 0:04:52.9]} 6... cxd4 {[%clk 0:04:47.2]} 7.
cxd4 {[%clk 0:04:49.9]} 7... Bb4+ {[%clk 0:04:44.5]} 8. Bd2 {[%clk 0:04:48.3]}
8... Nge7 {[%clk 0:04:41.4]} 9. O-O {[%clk 0:04:38.6]} 9... Nf5 {[%clk
0:04:38.3]} 10. Be3 {[%clk 0:04:31.6]} 10... Nxe3 {[%clk 0:04:22.8]} 11. fxe3
{[%clk 0:04:27.9]} 11... Bd7 {[%clk 0:04:19.8]} 12. a3 {[%clk 0:04:25.5]} 12...
Be7 {[%clk 0:04:14.7]} 13. b4 {[%clk 0:04:24.7]} 13... f6 {[%clk 0:04:10.8]} 14.
exf6 {[%clk 0:04:22]} 14... Bxf6 {[%clk 0:04:07.3]} 15. Nc3 {[%clk 0:04:19.3]}
15... a6 {[%clk 0:03:57.7]} 16. Na4 {[%clk 0:04:13.9]} 16... Qc7 {[%clk
0:03:49.3]} 17. Nc5 {[%clk 0:04:09.7]} 17... O-O {[%clk 0:03:39.8]} 18. Rc1
{[%clk 0:04:07.3]} 18... b5 {[%clk 0:03:24.4]} 19. Bd3 {[%clk 0:04:02.5]} 19...
g6 {[%clk 0:03:17.2]} 20. Qe1 {[%clk 0:03:58.6]} 20... Rf7 {[%clk 0:02:53]} 21.
Nxa6 {[%clk 0:03:44.5]} 21... Rxa6 {[%clk 0:02:45.3]} 22. Bxb5 {[%clk
0:03:43.5]} 22... Rxa3 {[%clk 0:02:38.3]} 23. Bxc6 {[%clk 0:03:41.4]} 23... Bxc6
{[%clk 0:02:34.8]} 24. b5 {[%clk 0:03:40.4]} 24... Rb3 {[%clk 0:02:13]} 25. Rxc6
{[%clk 0:03:38]} 25... Qd7 {[%clk 0:02:03.4]} 26. Qc1 {[%clk 0:03:12]} 26...
Rxb5 {[%clk 0:01:54.7]} 27. Ne5 {[%clk 0:03:09]} 27... Bxe5 {[%clk 0:01:49.7]}
28. Rc8+ {[%clk 0:03:05.4]} 28... Kg7 {[%clk 0:01:40.9]} 29. Rxf7+ {[%clk
0:02:59.1]} 29... Qxf7 {[%clk 0:01:29.3]} 30. dxe5 {[%clk 0:02:58.5]} 30... Rb7
{[%clk 0:01:20.1]} 31. h3 {[%clk 0:02:54]} 31... Qf5 {[%clk 0:00:49.4]} 32. Rc7+
{[%clk 0:02:43.2]} 32... Rxc7 {[%clk 0:00:46.7]} 33. Qxc7+ {[%clk 0:02:39.1]}
33... Kh6 {[%clk 0:00:42.7]} 34. Qc3 {[%clk 0:02:37.8]} 34... Qb1+ {[%clk
0:00:34.8]} 35. Kh2 {[%clk 0:02:35.7]} 35... Qe4 {[%clk 0:00:27.8]} 36. Kg3
{[%clk 0:02:27.3]} 36... g5 {[%clk 0:00:20.2]} 37. Qd4 {[%clk 0:02:23.5]} 37...
Qxd4 {[%clk 0:00:16.5]} 38. exd4 {[%clk 0:02:23]} 38... Kg6 {[%clk 0:00:14.6]}
39. Kf3 {[%clk 0:02:21.9]} 39... Kf5 {[%clk 0:00:12.4]} 40. g4+ {[%clk
0:02:20.6]} 40... Kg6 {[%clk 0:00:08]} 41. Ke3 {[%clk 0:02:20.1]} 41... h5
{[%clk 0:00:03.1]} 42. Kd3 {[%clk 0:02:19.8]} 1-0

[Event "Live Chess"]
[Site "Chess.com"]
[Date "2023.05.21"]
[Round "-"]
[White "Denz14"]
[Black "diana21strabt"]
[Result "0-1"]
[WhiteElo "1031"]
[BlackElo "1708"]
[TimeControl "300"]
[EndTime "0:24:53 PDT"]
[Termination "diana21strabt won by resignation"]

1. e4 {[%clk 0:04:57.2]} 1... d5 {[%clk 0:04:58.5]} 2. exd5 {[%clk 0:04:55.1]}
2... Qxd5 {[%clk 0:04:56.1]} 3. Nc3 {[%clk 0:04:53.6]} 3... Qa5 {[%clk
0:04:54.7]} 4. d4 {[%clk 0:04:51.1]} 4... Nf6 {[%clk 0:04:51.7]} 5. Bd2 {[%clk
0:04:49.9]} 5... Bg4 {[%clk 0:04:49.4]} 6. f3 {[%clk 0:04:48.1]} 6... Bh5 {[%clk
0:04:37.2]} 7. g4 {[%clk 0:04:40.2]} 7... Bg6 {[%clk 0:04:35.4]} 8. Nh3 {[%clk
0:04:21.6]} 8... Nc6 {[%clk 0:04:27.6]} 9. Nd5 {[%clk 0:04:13.8]} 9... Qxd5
{[%clk 0:04:23.3]} 10. Nf4 {[%clk 0:04:01.7]} 10... Qxd4 {[%clk 0:04:13.3]} 11.
Nxg6 {[%clk 0:03:59.1]} 11... hxg6 {[%clk 0:04:12.1]} 12. Bb5 {[%clk 0:03:51.9]}
12... Qe5+ {[%clk 0:04:09.1]} 13. Qe2 {[%clk 0:03:49.4]} 13... Qxe2+ {[%clk
0:04:07.7]} 14. Bxe2 {[%clk 0:03:47.1]} 14... O-O-O {[%clk 0:04:06.4]} 15. O-O-O
{[%clk 0:03:45.8]} 15... Nd4 {[%clk 0:04:04.9]} 16. Bd3 {[%clk 0:03:43.1]} 16...
Nxf3 {[%clk 0:04:02.5]} 17. Bg5 {[%clk 0:03:40]} 17... Nxg5 {[%clk 0:04:00.3]}
18. h4 {[%clk 0:03:37.8]} 18... Nge4 {[%clk 0:03:55.7]} 19. Bxe4 {[%clk
0:03:36.4]} 19... Nxe4 {[%clk 0:03:53.5]} 20. Rxd8+ {[%clk 0:03:31.3]} 20...
Kxd8 {[%clk 0:03:52.2]} 21. h5 {[%clk 0:03:28.4]} 21... gxh5 {[%clk 0:03:50.8]}
22. gxh5 {[%clk 0:03:26]} 22... g6 {[%clk 0:03:50]} 23. Re1 {[%clk 0:03:22.7]}
23... Nc5 {[%clk 0:03:45.5]} 24. Rf1 {[%clk 0:03:17.3]} 24... Rxh5 {[%clk
0:03:39]} 25. Rxf7 {[%clk 0:03:15.4]} 25... Bh6+ {[%clk 0:03:38]} 0-1

[Event "Live Chess"]
[Site "Chess.com"]
[Date "2023.05.21"]
[Round "-"]
[White "ChessClubLive"]
[Black "chessfiction"]
[Result "0-1"]
[WhiteElo "1725"]
[BlackElo "2352"]
[TimeControl "300"]
[EndTime "0:24:57 PDT"]
[Termination "chessfiction won by resignation"]

1. e4 {[%clk 0:04:55.5]} 1... d5 {[%clk 0:04:59]} 2. d4 {[%clk 0:04:52.6]} 2...
dxe4 {[%clk 0:04:57.8]} 3. Nc3 {[%clk 0:04:51.2]} 3... Nf6 {[%clk 0:04:57.1]} 4.
f3 {[%clk 0:04:50.4]} 4... Nc6 {[%clk 0:04:56]} 5. Be3 {[%clk 0:04:45.6]} 5...
Bf5 {[%clk 0:04:53.5]} 6. Qd2 {[%clk 0:04:38.9]} 6... e5 {[%clk 0:04:51.9]} 7.
O-O-O {[%clk 0:04:37.4]} 7... Bb4 {[%clk 0:04:50]} 8. dxe5 {[%clk 0:04:16.7]}
8... Qxd2+ {[%clk 0:04:43.2]} 9. Bxd2 {[%clk 0:04:06.7]} 9... Nxe5 {[%clk
0:04:39.4]} 10. fxe4 {[%clk 0:04:00.3]} 10... Bg4 {[%clk 0:04:29]} 11. Be2
{[%clk 0:03:53.8]} 11... O-O-O {[%clk 0:04:27.7]} 12. Bxg4+ {[%clk 0:03:52.5]}
12... Nfxg4 {[%clk 0:04:25.3]} 13. Nh3 {[%clk 0:03:39.2]} 13... Nc4 {[%clk
0:04:17.1]} 14. Bg5 {[%clk 0:03:25.3]} 14... f6 {[%clk 0:04:15]} 15. Rxd8+
{[%clk 0:03:21.8]} 15... Rxd8 {[%clk 0:04:14.9]} 16. Bh4 {[%clk 0:03:19.7]}
16... Nge3 {[%clk 0:03:58.8]} 17. g4 {[%clk 0:02:36.8]} 17... Rd2 {[%clk
0:03:57.2]} 0-1

[Event "Live Chess"]
[Site "Chess.com"]
[Date "2023.05.21"]
[Round "-"]
[White "Doge_Dandolo"]
[Black "blunderabit"]
[Result "1-0"]
[WhiteElo "1898"]
[BlackElo "1808"]
[TimeControl "300"]
[EndTime "0:25:10 PDT"]
[Termination "Doge_Dandolo won by resignation"]

1. Nf3 {[%clk 0:04:53.3]} 1... Nf6 {[%clk 0:04:57.6]} 2. c4 {[%clk 0:04:51.8]}
2... e6 {[%clk 0:04:53.9]} 3. g3 {[%clk 0:04:50.2]} 3... d5 {[%clk 0:04:52.3]}
4. Bg2 {[%clk 0:04:49.6]} 4... Be7 {[%clk 0:04:24.7]} 5. O-O {[%clk 0:04:47.6]}
5... O-O {[%clk 0:04:22.1]} 6. d4 {[%clk 0:04:46.4]} 6... dxc4 {[%clk
0:04:20.7]} 7. Ne5 {[%clk 0:04:43.6]} 7... Nc6 {[%clk 0:04:17]} 8. Nxc6 {[%clk
0:04:42.1]} 8... bxc6 {[%clk 0:04:15.7]} 9. Be3 {[%clk 0:04:33.2]} 9... Rb8
{[%clk 0:04:12.2]} 10. Qc1 {[%clk 0:04:28.3]} 10... Nd5 {[%clk 0:04:09.7]} 11.
Na3 {[%clk 0:04:15.9]} 11... Ba6 {[%clk 0:03:49.6]} 12. Nxc4 {[%clk 0:04:04.8]}
12... Bxc4 {[%clk 0:03:40.2]} 13. Qxc4 {[%clk 0:04:03.3]} 13... Rxb2 {[%clk
0:03:33.8]} 14. Rfc1 {[%clk 0:03:45.2]} 14... Rb6 {[%clk 0:03:16.2]} 15. a4
{[%clk 0:03:40.9]} 15... Nxe3 {[%clk 0:02:49.4]} 16. fxe3 {[%clk 0:03:39]} 16...
Bg5 {[%clk 0:02:48.9]} 17. Rc3 {[%clk 0:03:33.2]} 17... Qb8 {[%clk 0:02:44.7]}
18. Kf2 {[%clk 0:03:30.3]} 18... Rd8 {[%clk 0:02:29.8]} 19. a5 {[%clk
0:03:25.7]} 19... Rb2 {[%clk 0:02:27.6]} 20. Qxc6 {[%clk 0:03:17.7]} 20... e5
{[%clk 0:02:18.1]} 21. d5 {[%clk 0:03:05]} 21... h5 {[%clk 0:02:04.6]} 22. h4
{[%clk 0:03:01.6]} 22... Bh6 {[%clk 0:01:58]} 23. Qxc7 {[%clk 0:02:52.7]} 23...
Qxc7 {[%clk 0:01:37.7]} 24. Rxc7 {[%clk 0:02:50.4]} 24... Rxd5 {[%clk
0:01:37.3]} 25. Bxd5 {[%clk 0:02:48.3]} 1-0

[Event "Live Chess"]
[Site "Chess.com"]
[Date "2023.05.21"]
[Round "-"]
[White "tpm07"]
[Black "profpirate4"]
[Result "1-0"]
[WhiteElo "1925"]
[BlackElo "1264"]
[TimeControl "300"]
[EndTime "0:25:16 PDT"]
[Termination "tpm07 won by checkmate"]

1. e4 {[%clk 0:04:57.9]} 1... c5 {[%clk 0:04:58.9]} 2. Nf3 {[%clk 0:04:55.8]}
2... d6 {[%clk 0:04:55.5]} 3. d4 {[%clk 0:04:54.9]} 3... cxd4 {[%clk 0:04:54.5]}
4. Nxd4 {[%clk 0:04:54.8]} 4... Nf6 {[%clk 0:04:53.8]} 5. Nc3 {[%clk 0:04:54.3]}
5... a6 {[%clk 0:04:53.3]} 6. h3 {[%clk 0:04:53.6]} 6... e5 {[%clk 0:04:52.2]}
7. Nde2 {[%clk 0:04:51.9]} 7... Nbd7 {[%clk 0:04:48.1]} 8. g4 {[%clk 0:04:50.6]}
8... Nb6 {[%clk 0:04:46.9]} 9. g5 {[%clk 0:04:43.9]} 9... Nfd7 {[%clk
0:04:45.4]} 10. Be3 {[%clk 0:04:41.1]} 10... Nc5 {[%clk 0:04:38.5]} 11. Bg2
{[%clk 0:04:28.9]} 11... Be7 {[%clk 0:04:34.6]} 12. Qd2 {[%clk 0:04:21.5]} 12...
Nc4 {[%clk 0:04:28.6]} 13. Qc1 {[%clk 0:04:15.3]} 13... Nxe3 {[%clk 0:04:24.5]}
14. Qxe3 {[%clk 0:04:12.6]} 14... Bxg5 {[%clk 0:04:21.7]} 15. Qg3 {[%clk
0:04:02.4]} 15... Bf6 {[%clk 0:04:16.7]} 16. Nd5 {[%clk 0:03:57.6]} 16... Be6
{[%clk 0:04:13.1]} 17. Nec3 {[%clk 0:03:56.5]} 17... b5 {[%clk 0:04:11.6]} 18.
O-O-O {[%clk 0:03:41]} 18... b4 {[%clk 0:04:09.9]} 19. Nxf6+ {[%clk 0:03:36.6]}
19... gxf6 {[%clk 0:04:03.7]} 20. Nd5 {[%clk 0:03:35.3]} 20... a5 {[%clk
0:03:35.2]} 21. Qg7 {[%clk 0:03:27.5]} 21... Rf8 {[%clk 0:03:32.2]} 22. Nxf6+
{[%clk 0:03:19.7]} 22... Ke7 {[%clk 0:03:29.2]} 23. Nd5+ {[%clk 0:03:05.3]}
23... Kd7 {[%clk 0:03:22.8]} 24. Bf1 {[%clk 0:02:35.3]} 24... Rg8 {[%clk
0:03:20.1]} 25. Bb5+ {[%clk 0:02:31.4]} 25... Kc8 {[%clk 0:02:56.1]} 26. Qxh7
{[%clk 0:02:09.1]} 26... Kb7 {[%clk 0:02:44.3]} 27. f4 {[%clk 0:01:52.1]} 27...
Rc8 {[%clk 0:02:15.3]} 28. f5 {[%clk 0:01:41.5]} 28... Nxe4 {[%clk 0:01:48.8]}
29. fxe6 {[%clk 0:01:28.9]} 29... Rxc2+ {[%clk 0:01:47]} 30. Kxc2 {[%clk
0:01:13.5]} 30... Rg2+ {[%clk 0:01:40.2]} 31. Kb1 {[%clk 0:01:10.6]} 31... Nd2+
{[%clk 0:01:35.7]} 32. Rxd2 {[%clk 0:01:01.1]} 32... Rxd2 {[%clk 0:01:34.1]} 33.
Qxf7+ {[%clk 0:00:59.1]} 33... Kb8 {[%clk 0:01:26.5]} 34. e7 {[%clk 0:00:34.5]}
34... Kb7 {[%clk 0:00:53.3]} 35. exd8=Q# {[%clk 0:00:26.5]} 1-0

[Event "Live Chess"]
[Site "Chess.com"]
[Date "2023.05.21"]
[Round "-"]
[White "BJAW87"]
[Black "smashu34"]
[Result "1-0"]
[WhiteElo "1442"]
[BlackElo "346"]
[TimeControl "300"]
[EndTime "0:25:16 PDT"]
[Termination "BJAW87 won - game abandoned"]

1. e4 {[%clk 0:04:58.9]} 1... d5 {[%clk 0:04:57.1]} 2. exd5 {[%clk 0:04:57.9]}
2... Qxd5 {[%clk 0:04:55.7]} 3. Nc3 {[%clk 0:04:57.1]} 3... Qe6+ {[%clk
0:04:54.5]} 4. Be2 {[%clk 0:04:55.9]} 4... Nc6 {[%clk 0:04:44.2]} 5. Nf3 {[%clk
0:04:54.6]} 5... Nb4 {[%clk 0:04:38]} 6. a3 {[%clk 0:04:45.2]} 6... Nd5 {[%clk
0:04:27.3]} 7. Nxd5 {[%clk 0:04:24.8]} 7... Qxd5 {[%clk 0:04:22.1]} 8. O-O
{[%clk 0:04:22.8]} 8... Bf5 {[%clk 0:04:18]} 9. c4 {[%clk 0:04:14.9]} 9... Qc5
{[%clk 0:04:09.1]} 10. b4 {[%clk 0:04:09.5]} 10... Qd6 {[%clk 0:04:00.3]} 11. c5
{[%clk 0:04:01.1]} 11... Qd5 {[%clk 0:03:56.1]} 12. Qa4+ {[%clk 0:03:38.7]}
12... c6 {[%clk 0:03:51.8]} 13. d4 {[%clk 0:03:20.6]} 13... Qe4 {[%clk
0:03:40.3]} 14. Re1 {[%clk 0:03:04.8]} 14... e6 {[%clk 0:03:31.4]} 15. Bc4
{[%clk 0:02:56.6]} 15... Qg4 {[%clk 0:03:17.9]} 16. Ne5 {[%clk 0:02:42.3]} 16...
Qf4 {[%clk 0:03:05.6]} 17. Bxf4 {[%clk 0:02:40]} 17... Nf6 {[%clk 0:02:56.7]}
18. Nxc6 {[%clk 0:02:35.3]} 18... Nh5 {[%clk 0:02:53]} 19. Ne5+ {[%clk
0:02:25.8]} 19... Kd8 {[%clk 0:02:28.7]} 20. Nxf7+ {[%clk 0:02:24.8]} 20... Kc8
{[%clk 0:02:24]} 21. Nxh8 {[%clk 0:02:15.6]} 21... Nxf4 {[%clk 0:02:19.9]} 22.
Qe8+ {[%clk 0:02:07]} 22... Kc7 {[%clk 0:02:16.5]} 23. Qxa8 {[%clk 0:02:05.9]}
1-0

[Event "Live Chess"]
[Site "Chess.com"]
[Date "2023.05.21"]
[Round "-"]
[White "hturner40"]
[Black "KeithArkell"]
[Result "0-1"]
[WhiteElo "1775"]
[BlackElo "2555"]
[TimeControl "300"]
[EndTime "0:25:20 PDT"]
[Termination "KeithArkell won on time"]

1. Nf3 {[%clk 0:04:56.7]} 1... Nf6 {[%clk 0:04:52]} 2. g3 {[%clk 0:04:54.4]}
2... b5 {[%clk 0:04:50.5]} 3. Bg2 {[%clk 0:04:52.9]} 3... Bb7 {[%clk 0:04:49.7]}
4. O-O {[%clk 0:04:51.7]} 4... e6 {[%clk 0:04:49]} 5. d3 {[%clk 0:04:47.1]} 5...
d5 {[%clk 0:04:47.4]} 6. Nbd2 {[%clk 0:04:41.9]} 6... Nbd7 {[%clk 0:04:46.2]} 7.
Qe1 {[%clk 0:04:39.1]} 7... Nc5 {[%clk 0:04:43.3]} 8. b3 {[%clk 0:04:34.9]} 8...
b4 {[%clk 0:04:38.8]} 9. Bb2 {[%clk 0:04:32.9]} 9... Be7 {[%clk 0:04:37]} 10.
Ne5 {[%clk 0:04:27.7]} 10... O-O {[%clk 0:04:33.6]} 11. e4 {[%clk 0:04:25]}
11... a5 {[%clk 0:04:30.1]} 12. f4 {[%clk 0:04:07.6]} 12... a4 {[%clk
0:04:24.8]} 13. Rb1 {[%clk 0:03:59.8]} 13... axb3 {[%clk 0:04:21.9]} 14. axb3
{[%clk 0:03:58.7]} 14... Ra2 {[%clk 0:04:14.5]} 15. g4 {[%clk 0:03:50]} 15...
dxe4 {[%clk 0:04:07]} 16. Nxe4 {[%clk 0:03:46.4]} 16... Ncxe4 {[%clk 0:04:03.7]}
17. Ba1 {[%clk 0:02:25.6]} 17... Nd6 {[%clk 0:03:51.8]} 18. Bxb7 {[%clk
0:02:20.1]} 18... Nxb7 {[%clk 0:03:50.5]} 19. g5 {[%clk 0:02:14.2]} 19... Nh5
{[%clk 0:03:42.3]} 20. Qh4 {[%clk 0:02:10.2]} 20... g6 {[%clk 0:03:41.1]} 21.
Ng4 {[%clk 0:02:08.9]} 21... Rxa1 {[%clk 0:03:32.6]} 22. Rxa1 {[%clk 0:02:06.8]}
22... Qd5 {[%clk 0:03:27]} 23. Nh6+ {[%clk 0:01:45.5]} 23... Kg7 {[%clk
0:03:25.5]} 24. Ng4 {[%clk 0:00:51.5]} 24... Bc5+ {[%clk 0:03:19.2]} 25. Nf2
{[%clk 0:00:50.3]} 25... Qf3 {[%clk 0:03:14.9]} 26. Rae1 {[%clk 0:00:04.6]}
26... Nxf4 {[%clk 0:03:11.2]} 0-1

[Event "Live Chess"]
[Site "Chess.com"]
[Date "2023.05.21"]
[Round "-"]
[White "Biranidun"]
[Black "HoarseyHorsey"]
[Result "1-0"]
[WhiteElo "2536"]
[BlackElo "1444"]
[TimeControl "300"]
[EndTime "0:25:29 PDT"]
[Termination "Biranidun won by resignation"]

1. e4 {[%clk 0:04:59.1]} 1... c5 {[%clk 0:04:58.9]} 2. Nf3 {[%clk 0:04:58.3]}
2... e6 {[%clk 0:04:58.4]} 3. d4 {[%clk 0:04:57.9]} 3... cxd4 {[%clk 0:04:57.9]}
4. Nxd4 {[%clk 0:04:57.8]} 4... Nf6 {[%clk 0:04:56.5]} 5. Nc3 {[%clk 0:04:57.1]}
5... Nc6 {[%clk 0:04:56.1]} 6. Nxc6 {[%clk 0:04:56.6]} 6... bxc6 {[%clk
0:04:56]} 7. e5 {[%clk 0:04:56.2]} 7... Nd5 {[%clk 0:04:54.7]} 8. Ne4 {[%clk
0:04:55.9]} 8... Be7 {[%clk 0:04:52.6]} 9. c4 {[%clk 0:04:54.3]} 9... Nb6 {[%clk
0:04:50.2]} 10. Nd6+ {[%clk 0:04:52]} 10... Bxd6 {[%clk 0:04:49.6]} 11. Qxd6
{[%clk 0:04:51.6]} 11... Qe7 {[%clk 0:04:47]} 12. Qxe7+ {[%clk 0:04:50.8]} 12...
Kxe7 {[%clk 0:04:46.9]} 13. b3 {[%clk 0:04:50.2]} 13... Rd8 {[%clk 0:04:43.3]}
14. a4 {[%clk 0:04:49.3]} 14... d6 {[%clk 0:04:42.6]} 15. a5 {[%clk 0:04:47.3]}
15... Nd7 {[%clk 0:04:40.2]} 16. exd6+ {[%clk 0:04:43.7]} 16... Kxd6 {[%clk
0:04:40.1]} 17. Ba3+ {[%clk 0:04:41.9]} 17... c5 {[%clk 0:04:34.9]} 18. O-O-O+
{[%clk 0:04:39.1]} 18... Kc6 {[%clk 0:04:30.2]} 19. Bd3 {[%clk 0:04:37.8]} 19...
g6 {[%clk 0:04:28.7]} 20. Be4+ {[%clk 0:04:36.6]} 20... Kc7 {[%clk 0:04:23]} 21.
Bxa8 {[%clk 0:04:36.5]} 21... Bb7 {[%clk 0:04:17.4]} 22. Bxb7 {[%clk 0:04:35.4]}
22... Kxb7 {[%clk 0:04:17.3]} 23. Bxc5 {[%clk 0:04:34.6]} 23... a6 {[%clk
0:04:12.5]} 24. Bb6 {[%clk 0:04:33.4]} 1-0